bitfinex/quotes_SOLUSD_20241008
["timestamp","ask_amount","ask_price","bid_price","bid_amount"]
[1728420009851,6.9379,144.14,144.1,30.716284]
[1728420012454,6.9379,144.14,144.1,32.10395434]
[1728420015184,6.9379,144.14,144.1,25.16455434]
[1728420015477,6.9379,144.14,144.11,6.939]
[1728420026771,23.05103986,144.19,144.12,1.38766347]
[1728420027130,23.05103986,144.19,144.14,6.9375]
[1728420027273,6.9358,144.18,144.14,6.9375]
[1728420028292,6.9362,144.17,144.12,30.32214731]
[1728420028464,6.9362,144.17,144.13,6.938]
[1728420031701,6.9362,144.17,144.13,8.32539645]
[1728420032483,6.9362,144.17,144.13,6.938]
[1728420032896,6.9362,144.17,144.13,8.32539585]
[1728420033796,6.9362,144.17,144.13,6.938]
[1728420035297,6.9362,144.17,144.13,8.32539614]
[1728420035473,6.9362,144.17,144.13,6.938]
[1728420036696,6.9362,144.17,144.13,8.32539427]
[1728420042621,23.05103986,144.19,144.16,19.91304731]
[1728420042622,7.25273986,144.19,144.16,19.91304731]
[1728420042806,7.25273986,144.19,144.17,8.3231619]
[1728420043403,7.25273986,144.19,144.17,14.36370921]
[1728420043619,15.3772,144.23,144.17,21.29980921]
[1728420043789,15.3772,144.23,144.17,19.91274731]
[1728420043993,15.3772,144.23,144.17,8.32311483]
[1728420045103,6.9346,144.21,144.17,8.32311483]
[1728420046544,15.3772,144.23,144.18,41.115984]
[1728420046699,6.9335,144.23,144.19,21.29843105]
[1728420047887,6.9335,144.23,144.19,19.91164731]
[1728420048789,6.9335,144.23,144.19,21.29844006]
[1728420048986,6.9335,144.23,144.19,19.91164731]
[1728420051013,6.9335,144.23,144.19,21.29844351]
[1728420051614,6.9335,144.23,144.19,19.91164731]
[1728420051792,6.9335,144.23,144.19,21.29844557]
[1728420052306,6.9335,144.23,144.19,19.91164731]
[1728420053790,6.9335,144.23,144.19,21.2984451]
[1728420054009,6.9335,144.23,144.2,6.9348]
[1728420054204,6.9335,144.23,144.19,14.3634451]
[1728420055007,6.9335,144.23,144.19,21.2984451]
[1728420060727,6.9335,144.23,144.19,19.91164731]
[1728420061228,6.9339,144.22,144.19,19.91164731]
[1728420063510,6.9343,144.21,144.18,41.115984]
[1728420063722,6.9353,144.19,144.16,17.3418]
[1728420065010,6.9353,144.19,144.17,23.776884]
[1728420068808,6.935,144.2,144.17,23.776884]
[1728420069018,6.9381,144.14,144.09,8.1472116]
[1728420069443,6.9381,144.14,144.1,17.3482]
[1728420069734,0.12549,144.17,144.1,24.2877]
[1728420069938,6.9378,144.14,144.11,1.38761552]
[1728420070303,6.9373,144.15,144.11,8.32661552]
[1728420070531,6.9373,144.15,144.11,6.939]
[1728420071618,6.9373,144.15,144.12,23.776884]
[1728420080433,17.3396,144.18,144.11,23.776884]
[1728420080628,6.9377,144.14,144.1,24.2875]
[1728420080835,6.9377,144.14,144.1,24.2876]
[1728420082153,6.9377,144.14,144.11,23.776884]
[1728420095852,7.24734042,144.18,144.11,23.776884]
[1728420096054,6.9384,144.13,144.11,23.776884]
[1728420096550,6.9379,144.14,144.11,23.776884]
[1728420097755,6.9381,144.13,144.1,24.2878]
[1728420099355,17.3418,144.17,144.1,24.2878]
[1728420099559,6.9379,144.14,144.11,25.16450831]
[1728420099736,6.9379,144.14,144.11,32.10360831]
[1728420101154,6.9379,144.14,144.11,30.715984]
[1728420101542,6.9379,144.14,144.11,23.776884]
[1728420103954,17.3418,144.17,144.11,23.776884]
[1728420104162,14.18344042,144.18,144.14,6.9373]
[1728420104376,6.9362,144.17,144.13,24.283]
[1728420104535,6.9362,144.17,144.14,23.776884]
[1728420115863,15.4233,144.19,144.14,23.776884]
[1728420116066,6.9367,144.16,144.14,23.776884]
[1728420116264,6.9372,144.15,144.11,6.939]
[1728420116495,6.9383,144.13,144.09,6.9399]
[1728420116779,15.54879,144.19,144.1,8.32726206]
[1728420116780,6.9378,144.14,144.1,8.32726206]
[1728420116949,6.9378,144.14,144.1,6.9396]
[1728420117989,6.9378,144.14,144.11,23.776884]
[1728420118466,6.9368,144.16,144.12,6.9383]
[1728420118672,6.9375,144.15,144.11,48.062984]
[1728420118857,6.9382,144.13,144.1,6.9394]
[1728420119369,17.3406,144.17,144.08,17.3502]
[1728420119693,20.0,144.18,144.07,12.97664731]
[1728420119694,6.94,144.1,144.07,12.97664731]
[1728420119925,6.94,144.1,144.07,19.91764731]
[1728420120070,17.3456,144.13,144.07,19.91764731]
[1728420120325,6.9393,144.11,144.07,19.91764731]
[1728420120463,6.9393,144.11,144.07,6.941]
[1728420121676,6.9393,144.11,144.08,23.776884]
[1728420121881,17.3456,144.13,144.06,17.3538]
[1728420122367,6.9396,144.11,144.06,24.295]
[1728420123152,6.9396,144.11,144.07,23.776884]
[1728420123562,6.9396,144.11,144.07,32.10585495]
[1728420123978,17.3456,144.13,144.07,25.16485495]
[1728420124185,17.3456,144.13,144.04,20.0]
[1728420124648,6.9408,144.08,144.04,26.9421]
[1728420125256,6.9411,144.07,144.03,24.2998]
[1728420126461,6.9407,144.08,144.04,8.33044118]
[1728420126968,6.9407,144.08,144.04,6.9422]
[1728420127468,6.9407,144.08,144.04,8.33044209]
[1728420128076,6.9407,144.08,144.04,6.9422]
[1728420130864,6.9407,144.08,144.04,8.3304419]
[1728420131581,6.9407,144.08,144.04,6.9422]
[1728420144192,15.2415,144.1,144.04,36.75353131]
[1728420144504,7.24565536,144.12,144.09,6.94]
[1728420144706,6.9385,144.13,144.09,6.94]
[1728420145387,6.9387,144.12,144.08,8.32820716]
[1728420145893,6.9387,144.12,144.08,6.9403]
[1728420146596,16.2159,144.14,144.08,1.38795857]
[1728420146792,16.2159,144.14,144.1,6.9394]
[1728420146971,23.1539,144.14,144.1,6.9394]
[1728420148102,23.1539,144.14,144.09,25.67767414]
[1728420149275,23.1539,144.14,144.1,30.716384]
[1728420149476,23.1539,144.14,144.1,32.1040447]
[1728420149868,6.9373,144.15,144.11,6.9387]
[1728420150791,6.9373,144.15,144.12,1.38761067]
[1728420151086,6.9373,144.15,144.11,6.9387]
[1728420152693,7.25050142,144.19,144.14,12.97664731]
[1728420152898,6.9348,144.2,144.16,19.91324731]
[1728420153481,6.9348,144.2,144.15,48.056384]
[1728420156493,6.9355,144.19,144.15,48.056384]
[1728420161998,6.4355,144.19,144.15,48.056384]
[1728420162696,16.3111,144.23,144.15,41.119284]
[1728420162889,6.9349,144.2,144.16,6.9366]
[1728420182792,23.5565726,144.23,144.16,6.9366]
[1728420182991,6.9353,144.19,144.16,6.9366]
[1728420186824,6.9391,144.11,144.05,6.0017]
[1728420187035,0.12549,144.16,144.05,6.0017]
[1728420187213,15.665,144.13,144.05,6.0017]
[1728420187406,15.665,144.13,144.05,12.9436]
[1728420187407,6.9397,144.1,144.05,12.9436]
[1728420187594,6.9401,144.09,144.05,12.9436]
[1728420187806,6.9397,144.1,144.06,6.9413]
[1728420188596,6.9397,144.1,144.07,23.776884]
[1728420189210,6.9397,144.1,144.06,6.9413]
[1728420189609,6.9392,144.11,144.06,6.9413]
[1728420190689,6.9392,144.11,144.07,23.776884]
[1728420191116,20.0,144.12,144.07,23.776884]
[1728420191314,6.9396,144.1,144.07,23.776884]
[1728420191620,6.9396,144.1,144.06,23.776884]
[1728420192427,6.9406,144.08,144.06,23.776884]
[1728420195709,20.0,144.12,144.06,25.16499506]
[1728420196017,23.03850541,144.13,144.06,32.10619506]
[1728420196018,6.9397,144.1,144.06,32.10619506]
[1728420196810,6.9392,144.11,144.07,6.941]
[1728420197010,6.9392,144.11,144.08,1.38792323]
[1728420197385,29.85111541,144.13,144.09,6.94]
[1728420197724,15.665,144.13,144.08,23.776884]
[1728420197918,6.9386,144.12,144.08,30.717284]
[1728420205623,15.665,144.13,144.08,23.776884]
[1728420205827,6.9391,144.11,144.08,23.776884]
[1728420207344,6.9396,144.1,144.08,23.776884]
[1728420215648,15.665,144.13,144.08,23.776884]
[1728420215649,6.939,144.12,144.08,32.10518008]
[1728420216035,6.9391,144.11,144.08,25.16478008]
[1728420216349,6.9391,144.11,144.08,25.16476698]
[1728420216728,6.9391,144.11,144.08,23.776884]
[1728420216937,6.9399,144.1,144.08,23.776884]
[1728420220144,6.9399,144.1,144.08,23.776884]
[1728420221455,15.665,144.13,144.08,23.776884]
[1728420221754,6.9393,144.11,144.08,23.776884]
[1728420224882,6.9389,144.12,144.08,30.717384]
[1728420225233,6.9389,144.12,144.09,6.94]
[1728420227657,6.9389,144.12,144.09,8.32772825]
[1728420227863,6.9389,144.12,144.09,6.94]
[1728420229758,6.9389,144.12,144.08,30.717284]
[1728420244476,7.24961168,144.17,144.13,17.345]
[1728420244665,6.9346,144.21,144.17,6.9362]
[1728420244879,15.2699,144.22,144.18,1.38693121]
[1728420245076,15.2699,144.22,144.18,6.9356]
[1728420245571,22.2037,144.22,144.18,6.9356]
[1728420247863,15.2699,144.22,144.18,23.776884]
[1728420248170,6.9353,144.19,144.16,23.776884]
[1728420250164,6.9353,144.19,144.16,25.16397848]
[1728420250956,6.9353,144.19,144.16,23.776884]
[1728420253270,6.9351,144.2,144.16,6.9366]
[1728420254175,6.9351,144.2,144.16,8.32369575]
[1728420254478,15.2699,144.22,144.17,23.776884]
[1728420254684,6.9344,144.21,144.17,30.712784]
[1728420261693,6.9344,144.21,144.18,6.9356]
[1728420262077,22.204,144.22,144.18,6.9356]
[1728420262491,22.204,144.22,144.18,8.32250392]
[1728420264487,22.204,144.22,144.18,6.9356]
[1728420274781,15.2699,144.22,144.17,23.776884]
[1728420275124,6.9349,144.2,144.17,23.776884]
[1728420277183,15.2699,144.22,144.16,17.3413]
[1728420277480,6.9354,144.19,144.16,17.3413]
[1728420277686,6.9354,144.19,144.16,24.2779]
[1728420279008,6.935,144.2,144.16,24.2779]
[1728420279303,22.204,144.22,144.19,6.9352]
[1728420279607,22.204,144.22,144.18,24.2748]
[1728420287006,22.204,144.22,144.18,25.66171329]
[1728420288710,22.204,144.22,144.18,24.2748]
[1728420289307,17.3311,144.25,144.19,1.3869046]
[1728420289490,6.9334,144.23,144.19,8.3218046]
[1728420291014,6.9338,144.22,144.19,6.9349]
[1728420291386,6.9338,144.22,144.18,24.2747]
[1728420293316,17.3311,144.25,144.18,24.2747]
[1728420293492,6.9344,144.21,144.18,24.2747]
[1728420295918,0.12549,144.24,144.18,24.2747]
[1728420296097,6.9341,144.22,144.18,24.2747]
[1728420296299,6.9341,144.22,144.18,25.66162007]
[1728420297496,6.9341,144.22,144.18,24.2747]
[1728420300312,6.9335,144.23,144.19,30.711884]
[1728420300513,20.0,144.26,144.19,38.14044524]
[1728420300899,6.9329,144.24,144.21,6.9341]
[1728420301113,6.9333,144.23,144.2,24.2715]
[1728420301618,6.9377,144.14,144.1,25.49552266]
[1728420301818,6.9385,144.13,144.08,6.1597]
[1728420302024,6.9388,144.12,144.07,24.2927]
[1728420302513,15.4376,144.15,144.07,17.3521]
[1728420302724,6.9368,144.16,144.1,12.97664731]
[1728420303017,6.9368,144.16,144.11,8.32655266]
[1728420304204,0.12549,144.18,144.11,6.939]
[1728420304205,20.12549,144.18,144.11,6.939]
[1728420304408,6.9373,144.15,144.11,6.939]
[1728420304609,20.12549,144.18,144.06,17.3535]
[1728420304822,25.17345419,144.18,144.06,17.3535]
[1728420305016,28.82720813,144.18,144.06,17.3535]
[1728420305419,6.9387,144.12,144.07,6.9409]
[1728420306322,6.9387,144.12,144.08,23.776884]
[1728420306519,6.9393,144.11,144.06,17.3535]
[1728420306827,6.9398,144.1,144.06,24.295]
[1728420308133,6.9398,144.1,144.07,23.776884]
[1728420308425,6.9392,144.11,144.07,23.776884]
[1728420308731,6.9392,144.11,144.07,25.16482858]
[1728420309232,15.465,144.13,144.07,23.776884]
[1728420309403,6.941,144.08,144.05,6.952]
[1728420309610,6.9411,144.07,144.05,6.952]
[1728420310238,6.9415,144.06,144.05,6.952]
[1728420311605,6.9415,144.06,144.03,6.952]
[1728420311909,6.9373,144.15,144.1,6.9392]
[1728420312120,7.24303682,144.11,144.1,43.69313131]
[1728420312323,17.3389,144.19,144.1,43.69313131]
[1728420312324,17.3389,144.19,144.1,36.75353131]
[1728420312527,6.9369,144.16,144.11,17.3471]
[1728420312712,6.9369,144.16,144.11,24.2862]
[1728420314316,6.9369,144.16,144.12,6.9385]
[1728420320337,24.58167207,144.19,144.11,17.3471]
[1728420320520,6.9372,144.15,144.11,17.3471]
[1728420321031,6.9372,144.15,144.11,24.2861]
[1728420322638,0.12549,144.18,144.11,25.67369247]
[1728420322838,7.06159,144.18,144.13,6.938]
[1728420323222,6.9365,144.17,144.13,6.938]
[1728420323433,6.9368,144.16,144.12,6.9385]
[1728420324521,6.9368,144.16,144.12,8.32604044]
[1728420326336,6.9362,144.17,144.13,8.32533964]
[1728420327036,6.9353,144.19,144.15,6.9368]
[1728420333044,6.9349,144.2,144.16,6.9366]
[1728420336447,16.5541,144.21,144.16,1.38722773]
[1728420336631,16.5541,144.21,144.18,6.9356]
[1728420336836,7.05949,144.22,144.18,6.9356]
[1728420337749,6.9343,144.21,144.18,6.9356]
[1728420339350,6.934,144.22,144.18,8.3226724]
[1728420345157,6.9334,144.23,144.19,8.32187057]
[1728420345363,6.9334,144.23,144.19,25.66007057]
[1728420346147,6.9334,144.23,144.19,24.2731]
[1728420354139,6.9327,144.25,144.22,6.9337]
[1728420354340,6.9327,144.25,144.21,18.72217175]
[1728420354739,6.9327,144.25,144.22,6.9337]
[1728420355567,6.9327,144.25,144.21,25.65627175]
[1728420355754,6.9314,144.27,144.23,19.88506728]
[1728420356273,6.9314,144.27,144.24,1.38647845]
[1728420356647,6.9314,144.27,144.23,19.88506728]
[1728420357058,6.9314,144.27,144.23,6.9332]
[1728420359154,15.6985,144.28,144.22,30.710484]
[1728420359155,6.9319,144.26,144.22,30.710484]
[1728420360581,6.9329,144.24,144.21,17.3355]
[1728420361373,0.12549,144.27,144.21,24.2697]
[1728420361560,6.9325,144.25,144.21,24.2697]
[1728420365061,6.9329,144.24,144.2,6.9346]
[1728420365263,17.45409,144.27,144.18,17.3383]
[1728420365581,6.9336,144.23,144.19,6.935]
[1728420365783,6.9336,144.23,144.2,6.9347]
[1728420366286,6.933,144.24,144.2,6.9347]
[1728420370084,6.933,144.24,144.18,12.95186728]
[1728420370282,6.9324,144.25,144.21,6.934]
[1728420371172,6.9324,144.25,144.21,8.32067543]
[1728420371358,6.932,144.26,144.22,6.9337]
[1728420373575,6.9324,144.25,144.22,6.9337]
[1728420374057,0.12549,144.27,144.22,6.9337]
[1728420374254,6.932,144.26,144.22,17.3344]
[1728420374584,22.6298,144.28,144.24,24.2646]
[1728420377695,6.9315,144.27,144.24,17.332]
[1728420380785,6.9315,144.27,144.23,6.9332]
[1728420381368,6.9319,144.26,144.23,6.9332]
[1728420382160,15.6985,144.28,144.24,6.9327]
[1728420382361,15.6985,144.28,144.25,6.9321]
[1728420382585,7.05609,144.29,144.25,24.2629]
[1728420382787,6.9306,144.29,144.25,24.2629]
[1728420384294,6.9309,144.28,144.25,24.2629]
[1728420384493,6.9309,144.28,144.25,17.3308]
[1728420384874,6.9316,144.27,144.23,6.9333]
[1728420385079,6.9316,144.27,144.24,23.776884]
[1728420385486,6.9316,144.27,144.24,6.9327]
[1728420387495,17.45099,144.3,144.24,6.9327]
[1728420387671,6.9311,144.28,144.24,6.9327]
[1728420390295,6.9306,144.29,144.25,6.9322]
[1728420390595,6.9309,144.28,144.25,6.9322]
[1728420391700,0.53375633,144.32,144.26,18.71602856]
[1728420391898,7.46305633,144.32,144.28,6.9308]
[1728420392189,7.46305633,144.32,144.28,8.31679749]
[1728420392576,6.9298,144.31,144.27,6.9312]
[1728420393103,0.53375633,144.32,144.27,6.9312]
[1728420393399,6.9301,144.3,144.27,6.9312]
[1728420397478,6.9297,144.31,144.27,6.9312]
[1728420397680,6.9297,144.31,144.28,1.38607213]
[1728420398197,0.53375633,144.32,144.28,1.38607213]
[1728420398198,7.46275633,144.32,144.28,8.31667213]
[1728420398697,7.46275633,144.32,144.28,6.9306]
[1728420398875,0.53375633,144.32,144.29,8.31639511]
[1728420402917,0.53375633,144.32,144.29,6.9304]
[1728420403585,7.46275633,144.32,144.29,6.9304]
[1728420404694,0.53375633,144.32,144.31,19.88136728]
[1728420404887,0.53375633,144.32,144.31,43.65825128]
[1728420405389,0.53375633,144.32,144.31,30.706384]
[1728420407312,0.53375633,144.32,144.31,32.09200169]
[1728420408389,0.53375633,144.32,144.31,30.706384]
[1728420409408,0.53375633,144.32,144.31,8.31511895]
[1728420409609,0.53375633,144.32,144.31,43.65825128]
[1728420409795,0.53375633,144.32,144.31,45.04364231]
[1728420410194,0.53375633,144.32,144.31,43.65825128]
[1728420414310,0.53375633,144.32,144.31,63.78374128]
[1728420416288,0.53375633,144.32,144.31,63.65825128]
[1728420418116,7.2412916,144.42,144.39,12.95186728]
[1728420418292,16.7790086,144.46,144.4,8.30950604]
[1728420418293,6.9229,144.45,144.4,8.30950604]
[1728420418695,6.9229,144.45,144.41,6.9247]
[1728420419003,6.9229,144.45,144.41,6.9245]
[1728420419203,16.7790086,144.46,144.39,12.95186728]
[1728420419501,16.7790086,144.46,144.41,37.18786728]
[1728420419502,6.9229,144.45,144.41,37.18786728]
[1728420420601,23.7013086,144.46,144.42,1.38465194]
[1728420420817,0.8575086,144.46,144.44,30.699784]
[1728420421025,0.8575086,144.46,144.45,32.08395773]
[1728420421192,0.8575086,144.46,144.43,17.3087]
[1728420421506,0.8575086,144.46,144.44,23.776884]
[1728420422194,0.8575086,144.46,144.44,30.700084]
[1728420422920,0.8575086,144.46,144.45,1.38436961]
[1728420423496,0.8575086,144.46,144.44,30.700084]
[1728420423817,0.8575086,144.46,144.44,23.776884]
[1728420424020,0.8575086,144.46,144.44,25.16126965]
[1728420424519,0.8575086,144.46,144.45,6.9228]
[1728420424730,0.8575086,144.46,144.45,50.699684]
[1728420426315,0.8575086,144.46,144.45,57.196574]
[1728420426521,0.8575086,144.46,144.45,57.071084]
[1728420427305,0.8575086,144.46,144.45,58.45512522]
[1728420427619,0.8575086,144.46,144.45,71.4069925]
[1728420427805,0.8575086,144.46,144.45,58.45512522]
[1728420428009,0.8575086,144.46,144.45,71.4069925]
[1728420429299,0.8575086,144.46,144.45,70.02295128]
[1728420429821,0.8575086,144.46,144.44,20.0]
[1728420430193,0.8575086,144.46,144.44,21.38435651]
[1728420431216,0.8575086,144.46,144.45,1.38435769]
[1728420431420,0.8575086,144.46,144.45,25.16124169]
[1728420431603,0.8575086,144.46,144.45,23.776884]
[1728420432197,0.8575086,144.46,144.45,63.65155128]
[1728420432522,0.8575086,144.46,144.45,70.06623128]
[1728420433418,7.1181,144.55,144.51,23.776884]
[1728420433597,7.1181,144.55,144.52,1.38362456]
[1728420435012,6.9186,144.54,144.52,1.38362456]
[1728420435329,0.2,144.55,144.49,23.776884]
[1728420435510,6.9194,144.52,144.49,23.776884]
[1728420435918,0.2,144.55,144.5,1.38379794]
[1728420436118,6.919,144.53,144.5,1.38379794]
[1728420437593,6.9194,144.52,144.49,23.776884]
[1728420440415,0.2,144.55,144.49,23.776884]
[1728420440726,6.9202,144.51,144.48,23.776884]
[1728420441329,6.9202,144.51,144.49,1.38394721]
[1728420441703,6.9199,144.51,144.5,23.776884]
[1728420443102,6.9195,144.52,144.5,23.776884]
[1728420443326,6.9195,144.52,144.51,1.38381566]
[1728420443511,6.9195,144.52,144.49,23.776884]
[1728420443715,6.9195,144.52,144.5,1.38381782]
[1728420444704,0.2,144.55,144.5,1.38381782]
[1728420444905,6.9186,144.54,144.51,1.38359351]
[1728420445114,6.9186,144.54,144.52,23.776884]
[1728420445431,6.9189,144.53,144.52,23.776884]
[1728420446124,6.9188,144.54,144.51,23.776884]
[1728420446328,6.9189,144.53,144.51,23.776884]
[1728420447009,6.9185,144.54,144.52,1.38372399]
[1728420447732,6.9185,144.54,144.51,25.16057628]
[1728420448237,6.9189,144.53,144.51,1.38369708]
[1728420448619,6.9189,144.53,144.5,23.776884]
[1728420449339,6.9189,144.53,144.51,1.38371918]
[1728420450061,6.9189,144.53,144.5,23.776884]
[1728420451210,6.9186,144.54,144.51,1.38375663]
[1728420451412,6.9186,144.54,144.52,23.776884]
[1728420452317,6.9186,144.54,144.53,1.38364527]
[1728420452535,23.1288,144.55,144.53,1.38364527]
[1728420452739,0.2,144.55,144.53,8.30224527]
[1728420453042,0.2,144.55,144.54,23.776884]
[1728420453330,0.2,144.55,144.53,23.776884]
[1728420453538,7.118,144.55,144.53,23.776884]
[1728420453731,7.118,144.55,144.52,23.776884]
[1728420453916,0.2,144.55,144.52,23.776884]
[1728420454416,7.118,144.55,144.53,1.3834634]
[1728420458024,7.118,144.55,144.52,23.776884]
[1728420462037,0.2,144.55,144.52,23.776884]
[1728420462226,6.9185,144.54,144.5,19.80421224]
[1728420462426,0.12549,144.54,144.45,23.4701]
[1728420462735,6.9207,144.5,144.46,6.9221]
[1728420462931,6.9214,144.48,144.44,22.2136]
[1728420463126,6.921,144.49,144.45,6.9227]
[1728420463335,6.921,144.49,144.46,1.38410353]
[1728420463650,6.9222,144.47,144.42,14.64203932]
[1728420463851,6.9227,144.46,144.42,6.9241]
[1728420466832,6.9227,144.46,144.43,23.776884]
[1728420470460,6.9231,144.45,144.41,24.2357]
[1728420470635,6.9231,144.45,144.42,23.776884]
[1728420472036,6.9231,144.45,144.41,17.311]
[1728420472239,6.9226,144.46,144.42,1.38449255]
[1728420472440,6.9226,144.46,144.42,6.9242]
[1728420472642,6.9226,144.46,144.41,24.2355]
[1728420472843,15.1794,144.47,144.38,20.0]
[1728420473043,6.9237,144.44,144.38,37.3145]
[1728420473251,6.9237,144.44,144.39,1.38465645]
[1728420473765,6.9237,144.44,144.4,20.0]
[1728420473937,6.9237,144.44,144.41,1.3846566]
[1728420474445,6.9227,144.46,144.42,30.700984]
[1728420474649,6.9227,144.46,144.43,1.38449349]
[1728420474841,15.1794,144.47,144.43,14.26850573]
[1728420475064,16.097,144.51,144.44,23.776884]
[1728420475260,6.9208,144.5,144.46,23.776884]
[1728420475560,6.9208,144.5,144.47,1.38416373]
[1728420476646,23.0171,144.51,144.47,8.30596373]
[1728420476849,23.0171,144.51,144.48,1.38407677]
[1728420477249,16.097,144.51,144.48,1.38407677]
[1728420477453,23.017,144.51,144.47,6.9218]
[1728420477860,23.017,144.51,144.48,1.38403118]
[1728420478561,23.017,144.51,144.47,23.776884]
[1728420478859,23.017,144.51,144.48,1.384054]
[1728420480362,23.017,144.51,144.47,30.698584]
[1728420481541,23.017,144.51,144.48,1.38405485]
[1728420484039,6.9196,144.52,144.48,8.30525485]
[1728420484354,6.919,144.53,144.49,30.697584]
[1728420484668,6.919,144.53,144.5,1.38388198]
[1728420486470,6.9195,144.52,144.49,23.776884]
[1728420487463,6.92,144.51,144.49,1.38389168]
[1728420487665,6.92,144.51,144.47,6.9216]
[1728420488349,6.92,144.51,144.48,1.38398323]
[1728420488665,6.92,144.51,144.48,23.776884]
[1728420489666,6.92,144.51,144.49,1.3839838]
[1728420491067,6.92,144.51,144.48,23.776884]
[1728420491866,6.9205,144.5,144.47,23.776884]
[1728420492045,17.299,144.52,144.44,37.3072]
[1728420492757,17.299,144.52,144.44,44.2302]
[1728420492758,6.9214,144.48,144.44,44.2302]
[1728420493163,6.9214,144.48,144.45,23.776884]
[1728420495165,15.1356,144.53,144.43,6.9236]
[1728420495371,6.9228,144.45,144.41,17.3111]
[1728420495579,6.9242,144.42,144.38,25.44580614]
[1728420495766,6.9239,144.43,144.39,6.9255]
[1728420495947,0.12549,144.46,144.38,17.3146]
[1728420495948,6.9246,144.42,144.38,17.3146]
[1728420496140,6.9237,144.44,144.39,8.31037678]
[1728420496551,6.9238,144.43,144.39,8.31037678]
[1728420496744,6.9238,144.43,144.39,6.9255]
[1728420496944,6.9238,144.43,144.38,17.3146]
[1728420496945,6.9238,144.43,144.38,24.2406]
[1728420497667,17.43179,144.46,144.38,24.2406]
[1728420497973,6.9242,144.42,144.39,1.38486821]
[1728420498278,6.9242,144.42,144.38,24.2406]
[1728420499167,6.9255,144.4,144.35,17.3187]
[1728420499672,15.1356,144.41,144.36,1.38509779]
[1728420499881,22.0603,144.41,144.36,6.9267]
[1728420500248,22.0603,144.41,144.35,17.3187]
[1728420500462,22.0603,144.41,144.36,6.9269]
[1728420500658,6.9252,144.4,144.37,23.776884]
[1728420501063,6.9252,144.4,144.38,1.38509812]
[1728420501373,22.0603,144.41,144.38,1.38509812]
[1728420503186,22.0603,144.41,144.37,23.776884]
[1728420504267,22.0603,144.41,144.37,23.746854]
[1728420506576,6.9252,144.4,144.37,23.746854]
[1728420509762,15.1356,144.41,144.36,23.776884]
[1728420509964,6.9264,144.38,144.36,23.776884]
[1728420510159,15.1356,144.41,144.35,23.776884]
[1728420510374,6.926,144.39,144.35,6.9275]
[1728420510685,6.926,144.39,144.36,23.776884]
[1728420514680,6.926,144.39,144.37,1.38511598]
[1728420516669,6.926,144.39,144.36,23.776884]
[1728420519384,6.9272,144.36,144.32,8.31371649]
[1728420519593,6.9277,144.35,144.31,30.4974]
[1728420519970,6.9277,144.35,144.31,23.5681]
[1728420520489,0.12549,144.39,144.32,6.9289]
[1728420520689,6.9273,144.36,144.33,23.776884]
[1728420521188,6.9276,144.35,144.33,23.776884]
[1728420521499,6.9272,144.36,144.34,1.38544072]
[1728420522765,6.9272,144.36,144.33,23.776884]
[1728420525592,6.9272,144.36,144.33,25.16232419]
[1728420526105,6.9268,144.37,144.33,49.41182419]
[1728420531694,22.37720017,144.41,144.35,23.776884]
[1728420531993,6.9262,144.38,144.35,23.776884]
[1728420540487,6.9266,144.37,144.35,23.776884]
[1728420540686,6.9266,144.37,144.34,23.776884]
[1728420543600,6.9266,144.37,144.35,1.38532901]
[1728420544081,6.9263,144.38,144.35,1.38532901]
[1728420544283,15.1356,144.41,144.36,23.776884]
[1728420544492,15.1356,144.41,144.38,6.9258]
[1728420544792,6.9246,144.42,144.39,1.38503926]
[1728420544995,22.74118328,144.45,144.38,23.776884]
[1728420545203,6.9251,144.41,144.38,23.776884]
[1728420547188,22.74118328,144.45,144.38,25.16187316]